[Event "Titled Tuesday Blitz December 7 2021"]
[White "Popadic, Dragan"]
[Black "Rakhmanov, Aleksandr"]
[WhiteFideId "913650"]
[BlackFideId "4173708"]
[WhiteElo "2401"]
[BlackElo "2713"]
[Result "0-1"]
[Round "01"]
[TimeControl "180+1"]
[Date "2021.12.07"]
[WhiteClock "0:00:24"]
[BlackClock "0:00:07"]

1. e4 {[%clk 0:03:00]}  c5 {[%clk 0:02:51]} 2. Nc3 {[%clk 0:03:00]}  Nc6 {[%clk 0:02:47]} 3. f4 {[%clk 0:02:59]}  e6 {[%clk 0:02:43]} 4. Nf3 {[%clk 0:02:59]}  Nge7 {[%clk 0:02:44]} 5. Bb5 {[%clk 0:02:56]}  a6 {[%clk 0:02:42]} 6. Bxc6 {[%clk 0:02:56]}  Nxc6 {[%clk 0:02:42]} 7. d3 {[%clk 0:02:56]}  d5 {[%clk 0:02:40]} 8. O-O {[%clk 0:02:56]}  Be7 {[%clk 0:02:39]} 9. Bd2 {[%clk 0:02:56]}  O-O {[%clk 0:02:37]} 10. Qe1 {[%clk 0:02:56]}  b5 {[%clk 0:02:30]} 11. e5 {[%clk 0:02:55]}  b4 {[%clk 0:02:23]} 12. Ne2 {[%clk 0:02:54]}  a5 {[%clk 0:02:23]} 13. Rd1 {[%clk 0:02:49]}  a4 {[%clk 0:02:20]} 14. Kh1 {[%clk 0:02:46]}  b3 {[%clk 0:02:15]} 15. cxb3 {[%clk 0:02:45]}  axb3 {[%clk 0:02:14]} 16. axb3 {[%clk 0:02:41]}  Qb6 {[%clk 0:02:12]} 17. Nc1 {[%clk 0:02:38]}  Bd7 {[%clk 0:02:06]} 18. Be3 {[%clk 0:02:34]}  d4 {[%clk 0:02:02]} 19. Bf2 {[%clk 0:02:32]}  Nb4 {[%clk 0:02:02]} 20. Bh4 {[%clk 0:02:29]}  Bxh4 {[%clk 0:01:55]} 21. Qxh4 {[%clk 0:02:29]}  Nd5 {[%clk 0:01:55]} 22. Ng5 {[%clk 0:02:18]}  h6 {[%clk 0:01:53]} 23. Ne4 {[%clk 0:02:18]}  f5 {[%clk 0:01:08]} 24. exf6 {[%clk 0:02:15]}  Nxf6 {[%clk 0:01:07]} 25. Nxf6+ {[%clk 0:02:10]}  Rxf6 {[%clk 0:01:08]} 26. Qh5 {[%clk 0:01:50]}  Raf8 {[%clk 0:01:02]} 27. Ne2 {[%clk 0:01:50]}  Rf5 {[%clk 0:00:57]} 28. Qh4 {[%clk 0:01:46]}  Qxb3 {[%clk 0:00:52]} 29. Qe7 {[%clk 0:01:45]}  Qd5 {[%clk 0:00:51]} 30. Ra1 {[%clk 0:01:37]}  Bc6 {[%clk 0:00:44]} 31. Rg1 {[%clk 0:01:37]}  e5 {[%clk 0:00:37]} 32. Ng3 {[%clk 0:01:06]}  Rxf4 {[%clk 0:00:26]} 33. Ne4 {[%clk 0:01:06]}  c4 {[%clk 0:00:20]} 34. Ra5 {[%clk 0:00:53]}  Qxa5 {[%clk 0:00:15]} 35. Qe6+ {[%clk 0:00:53]}  Kh8 {[%clk 0:00:14]} 36. Qxc6 {[%clk 0:00:54]}  cxd3 {[%clk 0:00:12]} 37. Nd6 {[%clk 0:00:45]}  Rf1 {[%clk 0:00:05]} 38. h3 {[%clk 0:00:41]}  Rxg1+ {[%clk 0:00:05]} 39. Kxg1 {[%clk 0:00:41]}  Qe1+ {[%clk 0:00:06]} 40. Kh2 {[%clk 0:00:41]}  d2 {[%clk 0:00:06]} 41. Nf7+ {[%clk 0:00:24]}  Rxf7 {[%clk 0:00:06]} 42. Qe8+ {[%clk 0:00:24]}  Kh7 {[%clk 0:00:07]} 43. Qxf7 {[%clk 0:00:24]}  Qb1 {[%clk 0:00:07]} 0-1


[Site "https://www.chess.com"]

[Event "Titled Tuesday Blitz December 7 2021"]
[White "Quispe Arteaga, Gabriel"]
[Black "Navalgund, Niranjan"]
[WhiteFideId "32059809"]
[BlackFideId "5030854"]
[WhiteElo "2731"]
[BlackElo "2416"]
[Result "0-1"]
[Round "01"]
[TimeControl "180+1"]
[Date "2021.12.07"]
[WhiteClock "0:00:04"]
[BlackClock "0:00:21"]

1. c4 {[%clk 0:02:56]}  e5 {[%clk 0:02:55]} 2. Nc3 {[%clk 0:02:55]}  Nc6 {[%clk 0:02:54]} 3. g3 {[%clk 0:02:43]}  f5 {[%clk 0:02:54]} 4. Bg2 {[%clk 0:02:43]}  Nf6 {[%clk 0:02:39]} 5. e3 {[%clk 0:02:44]}  d5 {[%clk 0:02:33]} 6. Nxd5 {[%clk 0:02:41]}  Nxd5 {[%clk 0:02:31]} 7. cxd5 {[%clk 0:02:41]}  Nb4 {[%clk 0:02:26]} 8. Qb3 {[%clk 0:02:41]}  e4 {[%clk 0:02:22]} 9. Ne2 {[%clk 0:02:41]}  Nd3+ {[%clk 0:02:19]} 10. Kf1 {[%clk 0:02:41]}  Bd6 {[%clk 0:02:18]} 11. Nf4 {[%clk 0:02:17]}  Bxf4 {[%clk 0:02:16]} 12. gxf4 {[%clk 0:02:18]}  O-O {[%clk 0:02:16]} 13. Qd1 {[%clk 0:02:04]}  Qh4 {[%clk 0:02:13]} 14. Qe2 {[%clk 0:02:02]}  b6 {[%clk 0:02:13]} 15. f3 {[%clk 0:00:58]}  Ba6 {[%clk 0:02:08]} 16. Kg1 {[%clk 0:00:58]}  exf3 {[%clk 0:01:48]} 17. Qxf3 {[%clk 0:00:51]}  Rf6 {[%clk 0:01:40]} 18. Qg3 {[%clk 0:00:49]}  Qh6 {[%clk 0:01:34]} 19. Qg5 {[%clk 0:00:39]}  Raf8 {[%clk 0:01:21]} 20. Qxh6 {[%clk 0:00:35]}  Rxh6 {[%clk 0:01:20]} 21. h4 {[%clk 0:00:29]}  Rff6 {[%clk 0:01:19]} 22. Rh2 {[%clk 0:00:28]}  Rfg6 {[%clk 0:01:19]} 23. b4 {[%clk 0:00:25]}  Ne1 {[%clk 0:01:16]} 24. Kf2 {[%clk 0:00:22]}  Nd3+ {[%clk 0:01:15]} 25. Kg1 {[%clk 0:00:22]}  Bb7 {[%clk 0:01:14]} 26. Kh1 {[%clk 0:00:18]}  Ne1 {[%clk 0:01:01]} 27. h5 {[%clk 0:00:18]}  Rxg2 {[%clk 0:00:55]} 28. Rxg2 {[%clk 0:00:18]}  Bxd5 {[%clk 0:00:56]} 29. Kg1 {[%clk 0:00:19]}  Nxg2 {[%clk 0:00:55]} 30. Bb2 {[%clk 0:00:17]}  Rxh5 {[%clk 0:00:52]} 31. Rc1 {[%clk 0:00:17]}  c6 {[%clk 0:00:49]} 32. Kf2 {[%clk 0:00:12]}  Nh4 {[%clk 0:00:46]} 33. Rg1 {[%clk 0:00:09]}  Ng6 {[%clk 0:00:45]} 34. a4 {[%clk 0:00:07]}  Rh2+ {[%clk 0:00:44]} 35. Ke1 {[%clk 0:00:08]}  Bc4 {[%clk 0:00:43]} 36. a5 {[%clk 0:00:05]}  bxa5 {[%clk 0:00:41]} 37. bxa5 {[%clk 0:00:05]}  a6 {[%clk 0:00:42]} 38. Bd4 {[%clk 0:00:05]}  Bd3 {[%clk 0:00:41]} 39. Kd1 {[%clk 0:00:05]}  Kf7 {[%clk 0:00:38]} 40. Kc1 {[%clk 0:00:05]}  h5 {[%clk 0:00:37]} 41. Kb2 {[%clk 0:00:06]}  Re2 {[%clk 0:00:35]} 42. Kc3 {[%clk 0:00:06]}  Bb5 {[%clk 0:00:35]} 43. Rg5 {[%clk 0:00:04]}  h4 {[%clk 0:00:31]} 44. Rxf5+ {[%clk 0:00:05]}  Kg8 {[%clk 0:00:31]} 45. Rg5 {[%clk 0:00:06]}  Kf7 {[%clk 0:00:30]} 46. Rf5+ {[%clk 0:00:06]}  Ke6 {[%clk 0:00:29]} 47. Rg5 {[%clk 0:00:07]}  Ne7 {[%clk 0:00:30]} 48. Rxg7 {[%clk 0:00:04]}  Nd5+ {[%clk 0:00:30]} 49. Kc2 {[%clk 0:00:04]}  h3 {[%clk 0:00:23]} 50. Rh7 {[%clk 0:00:04]}  h2 {[%clk 0:00:22]} 51. Rh5 {[%clk 0:00:03]}  Rg2 {[%clk 0:00:20]} 52. f5+ {[%clk 0:00:03]}  Kf7 {[%clk 0:00:20]} 53. Rh7+ {[%clk 0:00:04]}  Ke8 {[%clk 0:00:21]} 54. Rh8+ {[%clk 0:00:03]}  Kd7 {[%clk 0:00:21]} 55. Rh7+ {[%clk 0:00:04]}  Kc8 {[%clk 0:00:20]} 56. e4 {[%clk 0:00:04]}  Ba4+ {[%clk 0:00:20]} 57. Kc1 {[%clk 0:00:03]}  Rg1+ {[%clk 0:00:19]} 58. Kb2 {[%clk 0:00:03]}  h1=Q {[%clk 0:00:19]} 59. Rxh1 {[%clk 0:00:04]}  Rxh1 {[%clk 0:00:20]} 60. exd5 {[%clk 0:00:05]}  cxd5 {[%clk 0:00:20]} 61. f6 {[%clk 0:00:05]}  Rf1 {[%clk 0:00:20]} 62. Kc3 {[%clk 0:00:05]}  Kd7 {[%clk 0:00:20]} 63. Kb4 {[%clk 0:00:06]}  Kc6 {[%clk 0:00:20]} 64. Kxa4 {[%clk 0:00:03]}  Rf4 {[%clk 0:00:20]} 65. f7 {[%clk 0:00:03]}  Rxd4+ {[%clk 0:00:20]} 66. Kb3 {[%clk 0:00:04]}  Rf4 {[%clk 0:00:21]} 0-1


[Site "https://www.chess.com"]

[Event "Titled Tuesday Blitz December 7 2021"]
[White "Reprintsev, Alexander"]
[Black "Zhigalko, Sergei"]
[WhiteFideId "14100541"]
[BlackFideId "13502956"]
[WhiteElo "2483"]
[BlackElo "2943"]
[Result "1/2-1/2"]
[Round "01"]
[TimeControl "180+1"]
[Date "2021.12.07"]
[WhiteClock "0:00:45"]
[BlackClock "0:00:06"]

1. e4 {[%clk 0:02:58]}  c5 {[%clk 0:02:59]} 2. b3 {[%clk 0:02:58]}  Nf6 {[%clk 0:02:56]} 3. e5 {[%clk 0:02:58]}  Nd5 {[%clk 0:02:57]} 4. Nc3 {[%clk 0:02:58]}  Nc7 {[%clk 0:02:54]} 5. d4 {[%clk 0:02:56]}  cxd4 {[%clk 0:02:54]} 6. Qxd4 {[%clk 0:02:56]}  Nc6 {[%clk 0:02:55]} 7. Qe3 {[%clk 0:02:56]}  d5 {[%clk 0:02:40]} 8. exd6 {[%clk 0:02:56]}  Qxd6 {[%clk 0:02:38]} 9. Bb2 {[%clk 0:02:55]}  Nb4 {[%clk 0:02:38]} 10. Qe4 {[%clk 0:02:27]}  Bd7 {[%clk 0:01:24]} 11. Rd1 {[%clk 0:02:24]}  Qe6 {[%clk 0:01:24]} 12. Qxe6 {[%clk 0:02:17]}  Nxe6 {[%clk 0:01:17]} 13. Rd2 {[%clk 0:02:13]}  O-O-O {[%clk 0:01:12]} 14. a3 {[%clk 0:02:11]}  Nc6 {[%clk 0:01:05]} 15. Nf3 {[%clk 0:02:11]}  f6 {[%clk 0:00:57]} 16. g3 {[%clk 0:01:56]}  Nc7 {[%clk 0:00:54]} 17. Bg2 {[%clk 0:01:50]}  e5 {[%clk 0:00:54]} 18. O-O {[%clk 0:01:50]}  Be7 {[%clk 0:00:48]} 19. Rfd1 {[%clk 0:01:49]}  Bf5 {[%clk 0:00:48]} 20. Ne1 {[%clk 0:01:48]}  Rxd2 {[%clk 0:00:45]} 21. Rxd2 {[%clk 0:01:48]}  Nd4 {[%clk 0:00:39]} 22. Be4 {[%clk 0:01:48]}  Bg6 {[%clk 0:00:32]} 23. Bxg6 {[%clk 0:01:47]}  hxg6 {[%clk 0:00:33]} 24. Kg2 {[%clk 0:01:47]}  g5 {[%clk 0:00:14]} 25. h3 {[%clk 0:01:43]}  Rd8 {[%clk 0:00:11]} 26. Nf3 {[%clk 0:01:36]}  Nce6 {[%clk 0:00:10]} 27. Nxd4 {[%clk 0:01:30]}  Nxd4 {[%clk 0:00:10]} 28. Nd1 {[%clk 0:01:14]}  Ne6 {[%clk 0:00:10]} 29. Rxd8+ {[%clk 0:01:12]}  Bxd8 {[%clk 0:00:10]} 30. Ne3 {[%clk 0:01:12]}  Kd7 {[%clk 0:00:10]} 31. h4 {[%clk 0:01:08]}  gxh4 {[%clk 0:00:10]} 32. gxh4 {[%clk 0:01:09]}  Bb6 {[%clk 0:00:10]} 33. Kf3 {[%clk 0:01:08]}  Bd4 {[%clk 0:00:07]} 34. c3 {[%clk 0:01:07]}  Bxe3 {[%clk 0:00:08]} 35. fxe3 {[%clk 0:01:06]}  Nc5 {[%clk 0:00:08]} 36. b4 {[%clk 0:00:58]}  e4+ {[%clk 0:00:06]} 37. Kg4 {[%clk 0:00:56]}  Nd3 {[%clk 0:00:06]} 38. Ba1 {[%clk 0:00:56]}  b5 {[%clk 0:00:03]} 39. Kf5 {[%clk 0:00:56]}  Nf2 {[%clk 0:00:03]} 40. Kg6 {[%clk 0:00:52]}  Ke6 {[%clk 0:00:04]} 41. Kxg7 {[%clk 0:00:52]}  f5 {[%clk 0:00:04]} 42. h5 {[%clk 0:00:52]}  Ng4 {[%clk 0:00:04]} 43. c4 {[%clk 0:00:50]}  bxc4 {[%clk 0:00:04]} 44. Bd4 {[%clk 0:00:50]}  a6 {[%clk 0:00:04]} 45. a4 {[%clk 0:00:50]}  f4 {[%clk 0:00:03]} 46. exf4 {[%clk 0:00:50]}  e3 {[%clk 0:00:04]} 47. b5 {[%clk 0:00:50]}  axb5 {[%clk 0:00:04]} 48. axb5 {[%clk 0:00:50]}  e2 {[%clk 0:00:05]} 49. Bc3 {[%clk 0:00:50]}  Kd5 {[%clk 0:00:05]} 50. h6 {[%clk 0:00:49]}  Nxh6 {[%clk 0:00:05]} 51. Kxh6 {[%clk 0:00:49]}  Ke4 {[%clk 0:00:06]} 52. b6 {[%clk 0:00:49]}  Kd3 {[%clk 0:00:07]} 53. Be1 {[%clk 0:00:48]}  c3 {[%clk 0:00:08]} 54. b7 {[%clk 0:00:49]}  c2 {[%clk 0:00:09]} 55. b8=Q {[%clk 0:00:49]}  c1=Q {[%clk 0:00:10]} 56. Qd6+ {[%clk 0:00:47]}  Ke4 {[%clk 0:00:10]} 57. Qe5+ {[%clk 0:00:45]}  Kf3 {[%clk 0:00:09]} 58. Bc3 {[%clk 0:00:45]}  Qxf4+ {[%clk 0:00:04]} 59. Qxf4+ {[%clk 0:00:45]}  Kxf4 {[%clk 0:00:05]} 60. Kg6 {[%clk 0:00:45]}  Kf3 {[%clk 0:00:05]} 61. Bb4 {[%clk 0:00:45]}  Kg2 {[%clk 0:00:05]} 62. Ba5 {[%clk 0:00:45]}  e1=Q {[%clk 0:00:06]} 63. Bxe1 {[%clk 0:00:45]} 1/2-1/2


[Site "https://www.chess.com"]

[Event "Titled Tuesday Blitz December 7 2021"]
[White "Rodchenkov, Sergey D."]
[Black "Kucuksari, Kaan"]
[WhiteFideId "4168712"]
[BlackFideId "6380166"]
[WhiteElo "2409"]
[BlackElo "2720"]
[Result "1-0"]
[Round "01"]
[TimeControl "180+1"]
[Date "2021.12.07"]
[WhiteClock "0:00:48"]
[BlackClock "0:00:17"]

1. e4 {[%clk 0:03:00]}  c5 {[%clk 0:02:56]} 2. Nf3 {[%clk 0:03:00]}  e6 {[%clk 0:02:57]} 3. d4 {[%clk 0:03:00]}  cxd4 {[%clk 0:02:58]} 4. Nxd4 {[%clk 0:03:00]}  a6 {[%clk 0:02:59]} 5. Nc3 {[%clk 0:03:00]}  Qc7 {[%clk 0:02:59]} 6. Bd3 {[%clk 0:03:01]}  Nf6 {[%clk 0:03:00]} 7. Qe2 {[%clk 0:03:01]}  d6 {[%clk 0:03:00]} 8. f4 {[%clk 0:02:54]}  Nbd7 {[%clk 0:02:57]} 9. g4 {[%clk 0:02:54]}  Nc5 {[%clk 0:02:56]} 10. g5 {[%clk 0:02:54]}  Nfd7 {[%clk 0:02:57]} 11. Bd2 {[%clk 0:02:40]}  b5 {[%clk 0:02:56]} 12. O-O {[%clk 0:02:25]}  Bb7 {[%clk 0:02:55]} 13. b4 {[%clk 0:02:20]}  Nxd3 {[%clk 0:02:52]} 14. cxd3 {[%clk 0:02:20]}  h6 {[%clk 0:02:50]} 15. g6 {[%clk 0:02:14]}  Nf6 {[%clk 0:02:46]} 16. gxf7+ {[%clk 0:02:07]}  Qxf7 {[%clk 0:02:46]} 17. f5 {[%clk 0:02:06]}  e5 {[%clk 0:02:44]} 18. Ne6 {[%clk 0:02:03]}  Bc8 {[%clk 0:02:43]} 19. Nd5 {[%clk 0:02:01]}  Nxd5 {[%clk 0:02:17]} 20. exd5 {[%clk 0:02:01]}  Bxe6 {[%clk 0:02:18]} 21. fxe6 {[%clk 0:02:00]}  Qg6+ {[%clk 0:02:18]} 22. Kh1 {[%clk 0:01:56]}  Be7 {[%clk 0:02:17]} 23. a4 {[%clk 0:01:37]}  bxa4 {[%clk 0:02:04]} 24. Rxa4 {[%clk 0:01:38]}  Rf8 {[%clk 0:02:02]} 25. Raa1 {[%clk 0:01:31]}  Rxf1+ {[%clk 0:01:56]} 26. Rxf1 {[%clk 0:01:32]}  Bg5 {[%clk 0:00:47]} 27. Bxg5 {[%clk 0:01:12]}  Qxg5 {[%clk 0:00:47]} 28. Qd1 {[%clk 0:01:10]}  Ke7 {[%clk 0:00:27]} 29. Qa4 {[%clk 0:01:03]}  Ra7 {[%clk 0:00:17]} 30. Rf7+ {[%clk 0:00:55]}  Kd8 {[%clk 0:00:18]} 31. Rf8+ {[%clk 0:00:48]}  Kc7 {[%clk 0:00:17]} 32. Qc6# {[%clk 0:00:48]} 1-0


[Site "https://www.chess.com"]

[Event "Titled Tuesday Blitz December 7 2021"]
[White "Rustemov, Alexander"]
[Black "Guliev, Logman"]
[WhiteFideId "4119002"]
[BlackFideId "13400061"]
[WhiteElo "2755"]
[BlackElo "2428"]
[Result "1-0"]
[Round "01"]
[TimeControl "180+1"]
[Date "2021.12.07"]
[WhiteClock "0:00:51"]
[BlackClock "0:00:15"]

1. d4 {[%clk 0:03:00]}  Nf6 {[%clk 0:02:58]} 2. c4 {[%clk 0:02:59]}  e6 {[%clk 0:02:58]} 3. Nf3 {[%clk 0:03:00]}  Bb4+ {[%clk 0:02:58]} 4. Bd2 {[%clk 0:03:00]}  c5 {[%clk 0:02:59]} 5. Bxb4 {[%clk 0:02:59]}  cxb4 {[%clk 0:02:59]} 6. g3 {[%clk 0:02:59]}  O-O {[%clk 0:02:59]} 7. Bg2 {[%clk 0:03:00]}  d6 {[%clk 0:02:59]} 8. O-O {[%clk 0:03:01]}  a5 {[%clk 0:02:59]} 9. a3 {[%clk 0:02:59]}  Na6 {[%clk 0:03:00]} 10. Qd3 {[%clk 0:02:59]}  Qc7 {[%clk 0:03:00]} 11. Nbd2 {[%clk 0:02:58]}  Re8 {[%clk 0:03:00]} 12. e4 {[%clk 0:02:58]}  e5 {[%clk 0:03:00]} 13. h3 {[%clk 0:02:41]}  b6 {[%clk 0:02:59]} 14. Rfd1 {[%clk 0:02:39]}  Bb7 {[%clk 0:02:58]} 15. Ne1 {[%clk 0:02:38]}  Rad8 {[%clk 0:02:50]} 16. Nc2 {[%clk 0:02:36]}  exd4 {[%clk 0:02:46]} 17. axb4 {[%clk 0:02:28]}  axb4 {[%clk 0:02:43]} 18. Qxd4 {[%clk 0:02:21]}  Nc5 {[%clk 0:02:39]} 19. f3 {[%clk 0:02:15]}  d5 {[%clk 0:02:31]} 20. cxd5 {[%clk 0:02:10]}  Qxg3 {[%clk 0:02:25]} 21. Qf2 {[%clk 0:02:05]}  Qxf2+ {[%clk 0:01:41]} 22. Kxf2 {[%clk 0:02:05]}  Nd3+ {[%clk 0:01:42]} 23. Kg1 {[%clk 0:02:05]}  Nxb2 {[%clk 0:01:41]} 24. Rdb1 {[%clk 0:02:05]}  Nd3 {[%clk 0:01:42]} 25. Nxb4 {[%clk 0:02:04]}  Nf4 {[%clk 0:01:37]} 26. Nc4 {[%clk 0:01:50]}  N6h5 {[%clk 0:01:16]} 27. Ra7 {[%clk 0:01:43]}  Bc8 {[%clk 0:01:10]} 28. Nc6 {[%clk 0:01:42]}  Rd7 {[%clk 0:01:07]} 29. Rxd7 {[%clk 0:01:12]}  Bxd7 {[%clk 0:01:06]} 30. Nxb6 {[%clk 0:01:12]}  Bxh3 {[%clk 0:01:01]} 31. Bxh3 {[%clk 0:01:12]}  Nxh3+ {[%clk 0:01:01]} 32. Kh2 {[%clk 0:01:13]}  N3f4 {[%clk 0:00:58]} 33. d6 {[%clk 0:01:13]}  Nf6 {[%clk 0:00:54]} 34. e5 {[%clk 0:01:06]}  g5 {[%clk 0:00:35]} 35. exf6 {[%clk 0:01:01]}  Re2+ {[%clk 0:00:34]} 36. Kg1 {[%clk 0:00:58]}  Rd2 {[%clk 0:00:31]} 37. Nc4 {[%clk 0:00:53]}  Rc2 {[%clk 0:00:15]} 38. Rb8# {[%clk 0:00:51]} 1-0


[Site "https://www.chess.com"]

[Event "Titled Tuesday Blitz December 7 2021"]
[White "Sanal, Vahap"]
[Black "Eynullayev, Atilla"]
[WhiteFideId "6300545"]
[BlackFideId "13413570"]
[WhiteElo "2901"]
[BlackElo "2471"]
[Result "1-0"]
[Round "01"]
[TimeControl "180+1"]
[Date "2021.12.07"]
[WhiteClock "0:01:37"]
[BlackClock "0:00:03"]

1. e4 {[%clk 0:02:57]}  c5 {[%clk 0:02:59]} 2. Nf3 {[%clk 0:02:55]}  e6 {[%clk 0:02:59]} 3. g3 {[%clk 0:02:54]}  a6 {[%clk 0:02:54]} 4. Bg2 {[%clk 0:02:54]}  b5 {[%clk 0:02:54]} 5. O-O {[%clk 0:02:53]}  Bb7 {[%clk 0:02:55]} 6. Re1 {[%clk 0:02:52]}  d6 {[%clk 0:02:51]} 7. a4 {[%clk 0:02:50]}  Nc6 {[%clk 0:02:37]} 8. d4 {[%clk 0:02:45]}  cxd4 {[%clk 0:02:13]} 9. Nxd4 {[%clk 0:02:44]}  Nxd4 {[%clk 0:01:51]} 10. Qxd4 {[%clk 0:02:44]}  e5 {[%clk 0:01:50]} 11. Qd3 {[%clk 0:02:40]}  bxa4 {[%clk 0:01:46]} 12. Nc3 {[%clk 0:02:38]}  Nf6 {[%clk 0:01:44]} 13. Bg5 {[%clk 0:02:38]}  Be7 {[%clk 0:01:18]} 14. Rxa4 {[%clk 0:02:38]}  h6 {[%clk 0:01:15]} 15. Bxf6 {[%clk 0:02:35]}  Bxf6 {[%clk 0:01:15]} 16. Nd5 {[%clk 0:02:36]}  O-O {[%clk 0:01:12]} 17. c3 {[%clk 0:02:30]}  Bc6 {[%clk 0:01:06]} 18. Nxf6+ {[%clk 0:02:20]}  Qxf6 {[%clk 0:01:05]} 19. Rxa6 {[%clk 0:02:21]}  Rxa6 {[%clk 0:00:53]} 20. Qxa6 {[%clk 0:02:22]}  Ba8 {[%clk 0:00:35]} 21. Rd1 {[%clk 0:02:20]}  Rd8 {[%clk 0:00:31]} 22. h4 {[%clk 0:02:17]}  Qg6 {[%clk 0:00:30]} 23. Qd3 {[%clk 0:02:11]}  Kh7 {[%clk 0:00:18]} 24. b4 {[%clk 0:02:10]}  Qf6 {[%clk 0:00:14]} 25. c4 {[%clk 0:02:07]}  Qe7 {[%clk 0:00:14]} 26. c5 {[%clk 0:02:02]}  Qb7 {[%clk 0:00:14]} 27. Qd2 {[%clk 0:01:55]}  Rb8 {[%clk 0:00:13]} 28. cxd6 {[%clk 0:01:54]}  Rd8 {[%clk 0:00:12]} 29. Qc3 {[%clk 0:01:50]}  Qb5 {[%clk 0:00:12]} 30. Rd2 {[%clk 0:01:41]}  Rd7 {[%clk 0:00:08]} 31. Kh2 {[%clk 0:01:40]}  Qb7 {[%clk 0:00:03]} 32. Qxe5 {[%clk 0:01:38]}  Qxb4 {[%clk 0:00:01]} 33. Qf5+ {[%clk 0:01:37]}  g6 {[%clk 0:00:02]} 34. Qxd7 {[%clk 0:01:37]}  Qxd2 {[%clk 0:00:03]} 1-0


[Site "https://www.chess.com"]

[Event "Titled Tuesday Blitz December 7 2021"]
[White "Shahade, Gregory"]
[Black "Garagulya, Konstantin"]
[WhiteFideId "2009064"]
[BlackFideId "4128931"]
[WhiteElo "2675"]
[BlackElo "2329"]
[Result "1-0"]
[Round "01"]
[TimeControl "180+1"]
[Date "2021.12.07"]
[WhiteClock "0:00:12"]
[BlackClock "0:00:09"]

1. e4 {[%clk 0:03:00]}  c5 {[%clk 0:02:59]} 2. Nf3 {[%clk 0:03:01]}  a6 {[%clk 0:02:55]} 3. c3 {[%clk 0:02:59]}  d5 {[%clk 0:02:55]} 4. exd5 {[%clk 0:02:57]}  Qxd5 {[%clk 0:02:56]} 5. d4 {[%clk 0:02:57]}  Nf6 {[%clk 0:02:56]} 6. Bd3 {[%clk 0:02:53]}  cxd4 {[%clk 0:02:56]} 7. cxd4 {[%clk 0:02:49]}  e6 {[%clk 0:02:56]} 8. Nc3 {[%clk 0:02:49]}  Qd6 {[%clk 0:02:55]} 9. O-O {[%clk 0:02:49]}  Nc6 {[%clk 0:02:55]} 10. Re1 {[%clk 0:02:45]}  Be7 {[%clk 0:02:52]} 11. Bg5 {[%clk 0:02:44]}  O-O {[%clk 0:02:52]} 12. a3 {[%clk 0:02:32]}  Rd8 {[%clk 0:02:50]} 13. Bc2 {[%clk 0:02:15]}  Nxd4 {[%clk 0:02:47]} 14. Nxd4 {[%clk 0:02:15]}  Qxd4 {[%clk 0:02:48]} 15. Qf3 {[%clk 0:02:11]}  Qc5 {[%clk 0:02:30]} 16. h4 {[%clk 0:01:45]}  h6 {[%clk 0:02:11]} 17. Bf4 {[%clk 0:01:26]}  Qh5 {[%clk 0:01:53]} 18. Qg3 {[%clk 0:01:22]}  Qg4 {[%clk 0:01:45]} 19. Qh2 {[%clk 0:01:08]}  Nh5 {[%clk 0:01:08]} 20. Bc7 {[%clk 0:01:00]}  Rd2 {[%clk 0:01:06]} 21. Bd1 {[%clk 0:00:57]}  Qg6 {[%clk 0:00:34]} 22. Bf3 {[%clk 0:00:46]}  Rxb2 {[%clk 0:00:31]} 23. Rad1 {[%clk 0:00:45]}  Nf6 {[%clk 0:00:22]} 24. Be5 {[%clk 0:00:33]}  Qc2 {[%clk 0:00:17]} 25. Re2 {[%clk 0:00:27]}  Qb3 {[%clk 0:00:15]} 26. Rxb2 {[%clk 0:00:26]}  Qxb2 {[%clk 0:00:15]} 27. Nd5 {[%clk 0:00:26]}  Qxa3 {[%clk 0:00:14]} 28. Nxe7+ {[%clk 0:00:17]}  Qxe7 {[%clk 0:00:14]} 29. Qf4 {[%clk 0:00:17]}  Bd7 {[%clk 0:00:11]} 30. Bxf6 {[%clk 0:00:17]}  gxf6 {[%clk 0:00:11]} 31. Qxh6 {[%clk 0:00:17]}  Be8 {[%clk 0:00:10]} 32. Qf4 {[%clk 0:00:14]}  Rd8 {[%clk 0:00:09]} 33. Qg3+ {[%clk 0:00:14]}  Kf8 {[%clk 0:00:09]} 34. Re1 {[%clk 0:00:13]}  b5 {[%clk 0:00:09]} 35. h5 {[%clk 0:00:14]}  f5 {[%clk 0:00:09]} 36. h6 {[%clk 0:00:13]}  Qf6 {[%clk 0:00:10]} 37. h7 {[%clk 0:00:13]}  Qg7 {[%clk 0:00:09]} 38. Qh4 {[%clk 0:00:14]}  Qh8 {[%clk 0:00:09]} 39. Qxd8 {[%clk 0:00:13]}  Qxh7 {[%clk 0:00:09]} 40. Bc6 {[%clk 0:00:12]} 1-0


[Site "https://www.chess.com"]